[Event "*** Titled Tuesday Blitz"]
[Site "Chess.com"]
[Date "2019.12.03"]
[Round "5"]
[White "albano87"]
[Black "kacprekt"]
[Result "0-1"]
[WhiteElo "2084"]
[BlackElo "2336"]
[TimeControl "180+2"]
[EndTime "14:09:25 PST"]
[Termination "kacprekt won by resignation"]

1. d4 {[%clk 0:02:50.8]} 1... Nf6 {[%clk 0:03:00.1]} 2. Nf3 {[%clk 0:02:52]}
2... g6 {[%clk 0:02:59.8]} 3. g3 {[%clk 0:02:53.1]} 3... Bg7 {[%clk 0:03:00.1]}
4. Bg2 {[%clk 0:02:54.9]} 4... O-O {[%clk 0:03:01.5]} 5. O-O {[%clk 0:02:56.6]}
5... d5 {[%clk 0:03:03.1]} 6. c4 {[%clk 0:02:57.4]} 6... c5 {[%clk 0:03:04.7]}
7. dxc5 {[%clk 0:02:46.7]} 7... dxc4 {[%clk 0:03:05.8]} 8. Qa4 {[%clk
0:02:46.3]} 8... Qd5 {[%clk 0:03:06.4]} 9. Be3 {[%clk 0:02:45.7]} 9... Na6
{[%clk 0:02:55.5]} 10. Nc3 {[%clk 0:02:41.2]} 10... Qh5 {[%clk 0:02:46.7]} 11.
Qxc4 {[%clk 0:02:34.2]} 11... Be6 {[%clk 0:02:45.8]} 12. Qh4 {[%clk 0:02:35.8]}
12... Rac8 {[%clk 0:02:38.6]} 13. Qxh5 {[%clk 0:02:23.9]} 13... Nxh5 {[%clk
0:02:40.5]} 14. Ng5 {[%clk 0:02:22.1]} 14... Bxc3 {[%clk 0:02:39.7]} 15. bxc3
{[%clk 0:02:16.4]} 15... Nxc5 {[%clk 0:02:40.6]} 16. Nxe6 {[%clk 0:02:13.1]}
16... fxe6 {[%clk 0:02:33.4]} 17. Bxc5 {[%clk 0:02:08.8]} 17... Rxc5 {[%clk
0:02:32.8]} 18. Bxb7 {[%clk 0:02:08.5]} 18... Rxc3 {[%clk 0:02:33.1]} 19. Bf3
{[%clk 0:02:05.3]} 19... Nf6 {[%clk 0:02:26.1]} 20. Rfc1 {[%clk 0:02:01.7]}
20... Rfc8 {[%clk 0:02:25.5]} 21. Rxc3 {[%clk 0:02:02.3]} 21... Rxc3 {[%clk
0:02:27.4]} 22. a4 {[%clk 0:01:58.1]} 22... Kf7 {[%clk 0:02:26.3]} 23. a5 {[%clk
0:01:57.4]} 23... e5 {[%clk 0:02:27.7]} 24. Bb7 {[%clk 0:01:55.9]} 24... Rc2
{[%clk 0:02:17.8]} 25. Kf1 {[%clk 0:01:50]} 25... Nd7 {[%clk 0:02:09.7]} 26. Rd1
{[%clk 0:01:36.1]} 26... Nc5 {[%clk 0:02:08.9]} 27. Bf3 {[%clk 0:01:26.8]} 27...
e4 {[%clk 0:02:07.3]} 28. Bg4 {[%clk 0:01:23.6]} 28... h5 {[%clk 0:01:59.1]} 29.
Bc8 {[%clk 0:01:11.7]} 29... Nb3 {[%clk 0:01:59]} 30. Bb7 {[%clk 0:01:11.7]}
30... Nxa5 {[%clk 0:01:56.9]} 31. Bxe4 {[%clk 0:01:12]} 31... Rc7 {[%clk
0:01:56.2]} 32. Rd5 {[%clk 0:01:08]} 32... Nb7 {[%clk 0:01:54.4]} 33. Rg5 {[%clk
0:01:05.2]} 33... Nc5 {[%clk 0:01:43.3]} 34. Bxg6+ {[%clk 0:01:06]} 34... Kf6
{[%clk 0:01:44.4]} 35. h4 {[%clk 0:01:07.1]} 35... Ne6 {[%clk 0:01:44.4]} 36.
Rxh5 {[%clk 0:00:55.7]} 36... Kxg6 {[%clk 0:01:44]} 37. Re5 {[%clk 0:00:57]}
37... Kf6 {[%clk 0:01:44]} 38. f4 {[%clk 0:00:58.7]} 38... Rc5 {[%clk
0:01:39.1]} 39. Re4 {[%clk 0:00:55.7]} 39... a5 {[%clk 0:01:37.5]} 40. Kf2
{[%clk 0:00:54.8]} 40... Rb5 {[%clk 0:01:36.9]} 41. g4 {[%clk 0:00:47.2]} 41...
Rb4 {[%clk 0:01:38]} 42. g5+ {[%clk 0:00:48.5]} 42... Kf7 {[%clk 0:01:38.1]} 43.
Re5 {[%clk 0:00:48.1]} 43... Rxf4+ {[%clk 0:01:38.5]} 44. Kg3 {[%clk 0:00:49.2]}
44... Ra4 {[%clk 0:01:37]} 45. e3 {[%clk 0:00:46.9]} 45... Nf8 {[%clk
0:01:36.7]} 46. h5 {[%clk 0:00:47.1]} 46... e6 {[%clk 0:01:26.3]} 47. Rb5 {[%clk
0:00:46.8]} 47... Ke7 {[%clk 0:01:20.1]} 48. Rb7+ {[%clk 0:00:42]} 48... Kd6
{[%clk 0:01:20.3]} 49. g6 {[%clk 0:00:36.7]} 49... Ra1 {[%clk 0:01:17.2]} 50.
Kf2 {[%clk 0:00:35.7]} 50... Ra2+ {[%clk 0:01:16.3]} 51. Kf3 {[%clk 0:00:36.4]}
51... Nxg6 {[%clk 0:00:57.3]} 52. hxg6 {[%clk 0:00:34.9]} 52... Ra1 {[%clk
0:00:58.5]} 53. Kg4 {[%clk 0:00:30.1]} 53... Rg1+ {[%clk 0:00:58.3]} 54. Kh5
{[%clk 0:00:31.8]} 54... a4 {[%clk 0:00:58.8]} 55. Ra7 {[%clk 0:00:32.7]} 55...
Rh1+ {[%clk 0:00:56.8]} 56. Kg5 {[%clk 0:00:32.6]} 56... Rg1+ {[%clk 0:00:57.8]}
57. Kf6 {[%clk 0:00:34.1]} 57... Rf1+ {[%clk 0:00:57.4]} 58. Kg7 {[%clk
0:00:35.2]} 58... Re1 {[%clk 0:00:44]} 59. Ra6+ {[%clk 0:00:34.4]} 59... Ke5
{[%clk 0:00:44.1]} 60. Rxa4 {[%clk 0:00:30.7]} 60... Rxe3 {[%clk 0:00:44]} 61.
Kh6 {[%clk 0:00:27.6]} 61... Rg3 {[%clk 0:00:43.6]} 62. g7 {[%clk 0:00:25.4]}
62... Kf6 {[%clk 0:00:40.9]} 63. Rf4+ {[%clk 0:00:22.5]} 63... Ke7 {[%clk
0:00:41.5]} 64. Rf8 {[%clk 0:00:19.6]} 64... Rh3+ {[%clk 0:00:38.5]} 65. Kg6
{[%clk 0:00:20.5]} 65... Rg3+ {[%clk 0:00:39.6]} 66. Kh5 {[%clk 0:00:22]} 66...
Rxg7 {[%clk 0:00:39.4]} 67. Ra8 {[%clk 0:00:17.9]} 67... Kd6 {[%clk 0:00:39.2]}
68. Ra6+ {[%clk 0:00:17.8]} 68... Ke5 {[%clk 0:00:40.2]} 69. Ra5+ {[%clk
0:00:18.9]} 69... Kf4 {[%clk 0:00:37.9]} 70. Ra4+ {[%clk 0:00:19.1]} 70... Kf5
{[%clk 0:00:39.2]} 71. Ra8 {[%clk 0:00:17]} 71... e5 {[%clk 0:00:39.8]} 72. Rf8+
{[%clk 0:00:18.6]} 72... Ke4 {[%clk 0:00:40.9]} 73. Kh4 {[%clk 0:00:19.6]} 73...
Ke3 {[%clk 0:00:40.7]} 74. Kh3 {[%clk 0:00:21.2]} 74... e4 {[%clk 0:00:41.9]}
75. Rd8 {[%clk 0:00:21.8]} 75... Ke2 {[%clk 0:00:42.8]} 76. Re8 {[%clk
0:00:23.5]} 76... e3 {[%clk 0:00:44]} 77. Rd8 {[%clk 0:00:25.1]} 77... Ke1
{[%clk 0:00:43.5]} 78. Kh2 {[%clk 0:00:25.8]} 78... e2 {[%clk 0:00:43.9]} 79.
Kh1 {[%clk 0:00:26.3]} 79... Rg5 {[%clk 0:00:42.8]} 80. Rd6 {[%clk 0:00:18.7]}
80... Kf2 {[%clk 0:00:41.2]} 81. Rf6+ {[%clk 0:00:17.4]} 81... Ke3 {[%clk
0:00:41.8]} 82. Re6+ {[%clk 0:00:19]} 82... Kf3 {[%clk 0:00:41.1]} 83. Kh2
{[%clk 0:00:18.2]} 83... Rg4 {[%clk 0:00:34]} 84. Rf6+ {[%clk 0:00:18.2]} 84...
Rf4 {[%clk 0:00:33.8]} 85. Re6 {[%clk 0:00:19.1]} 85... Re4 {[%clk 0:00:34.5]}
86. Rf6+ {[%clk 0:00:15.9]} 86... Ke3 {[%clk 0:00:34.4]} 87. Rf1 {[%clk
0:00:15.6]} 87... exf1=Q {[%clk 0:00:32.1]} 0-1

[Event "*** Titled Tuesday Blitz"]
[Site "Chess.com"]
[Date "2019.12.03"]
[Round "5"]
[White "Vuk2000"]
[Black "Man-Chuk"]
[Result "1/2-1/2"]
[WhiteElo "2768"]
[BlackElo "2924"]
[TimeControl "180+2"]
[EndTime "14:14:07 PST"]
[Termination "Game drawn - insufficient material"]

1. d4 {[%clk 0:03:01.9]} 1... Nf6 {[%clk 0:02:58]} 2. Bg5 {[%clk 0:03:02.6]}
2... e6 {[%clk 0:02:57.1]} 3. e4 {[%clk 0:03:03.5]} 3... h6 {[%clk 0:02:58.2]}
4. Bxf6 {[%clk 0:03:04.8]} 4... Qxf6 {[%clk 0:03:00.1]} 5. c3 {[%clk 0:03:06.3]}
5... Nc6 {[%clk 0:03:00.5]} 6. Bd3 {[%clk 0:03:06]} 6... e5 {[%clk 0:03:01.7]}
7. d5 {[%clk 0:03:03.7]} 7... Ne7 {[%clk 0:02:58.1]} 8. Ne2 {[%clk 0:03:02.3]}
8... Ng6 {[%clk 0:02:57.8]} 9. O-O {[%clk 0:02:52.9]} 9... a5 {[%clk 0:02:58.8]}
10. Nd2 {[%clk 0:02:51]} 10... Bc5 {[%clk 0:02:58.3]} 11. a3 {[%clk 0:02:41.1]}
11... Nf4 {[%clk 0:02:51.4]} 12. Nxf4 {[%clk 0:02:37.3]} 12... Qxf4 {[%clk
0:02:53.3]} 13. b3 {[%clk 0:02:08.5]} 13... d6 {[%clk 0:02:49.7]} 14. Bb5+
{[%clk 0:01:52.1]} 14... Kf8 {[%clk 0:02:48.9]} 15. Ra2 {[%clk 0:01:51.3]} 15...
h5 {[%clk 0:02:35.4]} 16. Qf3 {[%clk 0:01:50.4]} 16... g5 {[%clk 0:02:30.7]} 17.
Qxf4 {[%clk 0:01:48]} 17... gxf4 {[%clk 0:02:31.7]} 18. Rfa1 {[%clk 0:01:44.7]}
18... Ke7 {[%clk 0:02:25.5]} 19. b4 {[%clk 0:01:42]} 19... Bb6 {[%clk
0:02:15.3]} 20. Be2 {[%clk 0:01:35.5]} 20... h4 {[%clk 0:02:12.4]} 21. h3 {[%clk
0:01:30.9]} 21... Rg8 {[%clk 0:01:55.2]} 22. Kf1 {[%clk 0:01:30.8]} 22... Bd7
{[%clk 0:01:53]} 23. Nf3 {[%clk 0:01:05.7]} 23... Rh8 {[%clk 0:01:52.3]} 24. c4
{[%clk 0:00:58.4]} 24... f5 {[%clk 0:01:40.9]} 25. Bd3 {[%clk 0:00:51.1]} 25...
fxe4 {[%clk 0:01:40.1]} 26. Bxe4 {[%clk 0:00:52]} 26... Kf6 {[%clk 0:01:37.5]}
27. b5 {[%clk 0:00:35.8]} 27... a4 {[%clk 0:01:33.5]} 28. Re2 {[%clk 0:00:24.8]}
28... Bc5 {[%clk 0:01:28.1]} 29. Raa2 {[%clk 0:00:23.1]} 29... Rag8 {[%clk
0:01:01.5]} 30. Bc2 {[%clk 0:00:21]} 30... Rg7 {[%clk 0:00:56.4]} 31. Be4 {[%clk
0:00:21]} 31... Rhg8 {[%clk 0:00:51.6]} 32. Ng1 {[%clk 0:00:21.5]} 32... Bf5
{[%clk 0:00:39.6]} 33. Bxf5 {[%clk 0:00:21.7]} 33... Kxf5 {[%clk 0:00:41]} 34.
Nf3 {[%clk 0:00:14.6]} 34... Rh8 {[%clk 0:00:31.4]} 35. Nd2 {[%clk 0:00:14.3]}
35... b6 {[%clk 0:00:22.2]} 36. f3 {[%clk 0:00:10.9]} 36... Be3 {[%clk 0:00:20]}
37. Ne4 {[%clk 0:00:11.2]} 37... Rhg8 {[%clk 0:00:21.1]} 38. Rab2 {[%clk
0:00:10.3]} 38... Bc5 {[%clk 0:00:13.1]} 39. Ra2 {[%clk 0:00:10.1]} 39... Bd4
{[%clk 0:00:12.9]} 40. Re1 {[%clk 0:00:09.4]} 40... Rg6 {[%clk 0:00:09.8]} 41.
Rb1 {[%clk 0:00:10.2]} 41... R6g7 {[%clk 0:00:08.8]} 42. Rb4 {[%clk 0:00:10.5]}
42... Ra8 {[%clk 0:00:10.1]} 43. Re2 {[%clk 0:00:09.6]} 43... Be3 {[%clk
0:00:06.5]} 44. Nc3 {[%clk 0:00:07.7]} 44... Bc5 {[%clk 0:00:04.5]} 45. Rxa4
{[%clk 0:00:08.8]} 45... Rxa4 {[%clk 0:00:05.8]} 46. Nxa4 {[%clk 0:00:10.7]}
46... Bxa3 {[%clk 0:00:06.6]} 47. Nc3 {[%clk 0:00:11.5]} 47... Rg8 {[%clk
0:00:07.5]} 48. Ra2 {[%clk 0:00:12.3]} 48... Bc5 {[%clk 0:00:05]} 49. Ra7 {[%clk
0:00:12.3]} 49... Rc8 {[%clk 0:00:05.3]} 50. Ne4 {[%clk 0:00:13.2]} 50... Bd4
{[%clk 0:00:06.7]} 51. Ke2 {[%clk 0:00:12.3]} 51... Be3 {[%clk 0:00:07.3]} 52.
Ke1 {[%clk 0:00:13]} 52... Bd4 {[%clk 0:00:07.3]} 53. Kf1 {[%clk 0:00:14.4]}
53... Kg6 {[%clk 0:00:07.6]} 54. Nd2 {[%clk 0:00:15.1]} 54... Kf7 {[%clk
0:00:05.4]} 55. Nb3 {[%clk 0:00:13.3]} 55... Be3 {[%clk 0:00:04.8]} 56. Na1
{[%clk 0:00:14.5]} 56... Ke7 {[%clk 0:00:06.1]} 57. Nc2 {[%clk 0:00:15.8]} 57...
Bc5 {[%clk 0:00:07.7]} 58. Ne1 {[%clk 0:00:15.6]} 58... Kd7 {[%clk 0:00:07.6]}
59. Nd3 {[%clk 0:00:16.8]} 59... Be3 {[%clk 0:00:08.7]} 60. Nb4 {[%clk
0:00:17.9]} 60... Bc5 {[%clk 0:00:05.8]} 61. Na2 {[%clk 0:00:19.2]} 61... Bd4
{[%clk 0:00:05.9]} 62. Nb4 {[%clk 0:00:20]} 62... Bc3 {[%clk 0:00:05.7]} 63. Nd3
{[%clk 0:00:19.5]} 63... Re8 {[%clk 0:00:05.2]} 64. Nf2 {[%clk 0:00:18.6]} 64...
Bd4 {[%clk 0:00:05.4]} 65. Ne4 {[%clk 0:00:19.6]} 65... Rf8 {[%clk 0:00:06.3]}
66. Ng5 {[%clk 0:00:20.1]} 66... Rc8 {[%clk 0:00:03.8]} 67. Ne6 {[%clk
0:00:20.3]} 67... Be3 {[%clk 0:00:04.7]} 68. Ng7 {[%clk 0:00:21]} 68... Bc5
{[%clk 0:00:04.2]} 69. Nf5 {[%clk 0:00:21.6]} 69... Rh8 {[%clk 0:00:05.7]} 70.
Ke2 {[%clk 0:00:15.9]} 70... Bg1 {[%clk 0:00:03.5]} 71. Ng7 {[%clk 0:00:12.7]}
71... Bd4 {[%clk 0:00:03.6]} 72. Ne6 {[%clk 0:00:13.7]} 72... Rc8 {[%clk
0:00:04.9]} 73. Kd3 {[%clk 0:00:13.6]} 73... Bf2 {[%clk 0:00:04.2]} 74. Ke4
{[%clk 0:00:14.5]} 74... Bc5 {[%clk 0:00:04.3]} 75. Kf5 {[%clk 0:00:14.8]} 75...
Bf2 {[%clk 0:00:04.6]} 76. Kg4 {[%clk 0:00:15.3]} 76... Bg3 {[%clk 0:00:04.9]}
77. Kg5 {[%clk 0:00:14.7]} 77... Bf2 {[%clk 0:00:04.3]} 78. Kf6 {[%clk
0:00:15.2]} 78... Bc5 {[%clk 0:00:03.3]} 79. Kf7 {[%clk 0:00:15.6]} 79... Be3
{[%clk 0:00:04.2]} 80. Nf8+ {[%clk 0:00:16.6]} 80... Kd8 {[%clk 0:00:05.7]} 81.
Nh7 {[%clk 0:00:17.2]} 81... Kd7 {[%clk 0:00:05.3]} 82. Nf6+ {[%clk 0:00:18.2]}
82... Kd8 {[%clk 0:00:06.8]} 83. Ke6 {[%clk 0:00:19.4]} 83... Bd4 {[%clk
0:00:07.5]} 84. Ne4 {[%clk 0:00:18.3]} 84... Be3 {[%clk 0:00:07.5]} 85. Ng5
{[%clk 0:00:12.9]} 85... Ke8 {[%clk 0:00:05.2]} 86. Nf7 {[%clk 0:00:13.8]} 86...
Bc5 {[%clk 0:00:05.8]} 87. Nh6 {[%clk 0:00:12.3]} 87... Kf8 {[%clk 0:00:06.7]}
88. Nf5 {[%clk 0:00:13.1]} 88... Bd4 {[%clk 0:00:07.3]} 89. Kf6 {[%clk
0:00:09.9]} 89... Bc3 {[%clk 0:00:04.7]} 90. Kg6 {[%clk 0:00:08.8]} 90... Ke8
{[%clk 0:00:05.2]} 91. Nxh4 {[%clk 0:00:05.7]} 91... Kd7 {[%clk 0:00:04.5]} 92.
Kf7 {[%clk 0:00:05.1]} 92... Rh8 {[%clk 0:00:03.1]} 93. Nf5 {[%clk 0:00:06.5]}
93... Rh7+ {[%clk 0:00:04]} 94. Kg6 {[%clk 0:00:07.8]} 94... Rh8 {[%clk
0:00:05.4]} 95. Nh6 {[%clk 0:00:09.1]} 95... Re8 {[%clk 0:00:05.4]} 96. Ng4
{[%clk 0:00:10.1]} 96... e4 {[%clk 0:00:06.4]} 97. fxe4 {[%clk 0:00:10.5]} 97...
Rxe4 {[%clk 0:00:08.3]} 98. Ra2 {[%clk 0:00:07.5]} 98... Rxc4 {[%clk 0:00:08.9]}
99. Rc2 {[%clk 0:00:08.4]} 99... Rc5 {[%clk 0:00:07.2]} 100. h4 {[%clk
0:00:09.5]} 100... Bd4 {[%clk 0:00:07.4]} 101. Rd2 {[%clk 0:00:05.5]} 101... Bc3
{[%clk 0:00:07.5]} 102. Rd3 {[%clk 0:00:06.3]} 102... Bb2 {[%clk 0:00:07.6]}
103. h5 {[%clk 0:00:07]} 103... Rc2 {[%clk 0:00:06.3]} 104. Kf5 {[%clk
0:00:03.1]} 104... Rxg2 {[%clk 0:00:07]} 105. Kxf4 {[%clk 0:00:04.5]} 105... Rg1
{[%clk 0:00:05.5]} 106. h6 {[%clk 0:00:05.7]} 106... Bc1+ {[%clk 0:00:05.9]}
107. Kf5 {[%clk 0:00:06.5]} 107... Rf1+ {[%clk 0:00:05.4]} 108. Kg6 {[%clk
0:00:07.5]} 108... Rg1 {[%clk 0:00:06.9]} 109. Kf5 {[%clk 0:00:07.6]} 109...
Rf1+ {[%clk 0:00:05.9]} 110. Kg6 {[%clk 0:00:09]} 110... Ke7 {[%clk 0:00:06.6]}
111. h7 {[%clk 0:00:07.8]} 111... Bb2 {[%clk 0:00:03.9]} 112. Re3+ {[%clk
0:00:08.9]} 112... Kd7 {[%clk 0:00:05.4]} 113. Re2 {[%clk 0:00:08.5]} 113... Bd4
{[%clk 0:00:04.3]} 114. Re4 {[%clk 0:00:08.9]} 114... Bh8 {[%clk 0:00:05]} 115.
Nh6 {[%clk 0:00:10]} 115... Rg1+ {[%clk 0:00:04.1]} 116. Rg4 {[%clk 0:00:10.5]}
116... Rf1 {[%clk 0:00:04]} 117. Kh5 {[%clk 0:00:10.2]} 117... Rh1+ {[%clk
0:00:03.4]} 118. Kg5 {[%clk 0:00:10.7]} 118... Rf1 {[%clk 0:00:05]} 119. Rf4
{[%clk 0:00:11.6]} 119... Rg1+ {[%clk 0:00:06.1]} 120. Ng4 {[%clk 0:00:11.8]}
120... Rh1 {[%clk 0:00:06.6]} 121. Rf7+ {[%clk 0:00:12.7]} 121... Ke8 {[%clk
0:00:08]} 122. Rxc7 {[%clk 0:00:13.8]} 122... Kf8 {[%clk 0:00:09.1]} 123. Kg6
{[%clk 0:00:13.5]} 123... Bd4 {[%clk 0:00:06.7]} 124. Nh6 {[%clk 0:00:13.6]}
124... Rg1+ {[%clk 0:00:06]} 125. Kf5 {[%clk 0:00:14.9]} 125... Rh1 {[%clk
0:00:04.3]} 126. Ng4 {[%clk 0:00:12.9]} 126... Bg7 {[%clk 0:00:05]} 127. Kg6
{[%clk 0:00:12]} 127... Bd4 {[%clk 0:00:04.7]} 128. Rf7+ {[%clk 0:00:11.2]}
128... Ke8 {[%clk 0:00:06]} 129. Rb7 {[%clk 0:00:12.7]} 129... Kf8 {[%clk
0:00:05.4]} 130. Kf5 {[%clk 0:00:08.5]} 130... Bg7 {[%clk 0:00:06.2]} 131. Rxb6
{[%clk 0:00:08.2]} 131... Rxh7 {[%clk 0:00:06.8]} 132. Rxd6 {[%clk 0:00:08.7]}
132... Rh1 {[%clk 0:00:07.2]} 133. Rd7 {[%clk 0:00:08.9]} 133... Bd4 {[%clk
0:00:06.3]} 134. Ke4 {[%clk 0:00:09]} 134... Bc5 {[%clk 0:00:05.8]} 135. Rc7
{[%clk 0:00:09.7]} 135... Re1+ {[%clk 0:00:05.6]} 136. Kf5 {[%clk 0:00:09.7]}
136... Rf1+ {[%clk 0:00:04.3]} 137. Kg6 {[%clk 0:00:09.2]} 137... Bd4 {[%clk
0:00:04.1]} 138. d6 {[%clk 0:00:08.4]} 138... Ke8 {[%clk 0:00:05.4]} 139. Re7+
{[%clk 0:00:09.2]} 139... Kd8 {[%clk 0:00:06.6]} 140. Nh6 {[%clk 0:00:10.1]}
140... Rf6+ {[%clk 0:00:07.4]} 141. Kg5 {[%clk 0:00:08.6]} 141... Rxd6 {[%clk
0:00:08.5]} 142. Nf5 {[%clk 0:00:04.4]} 142... Bf6+ {[%clk 0:00:05]} 143. Kg6
{[%clk 0:00:03.5]} 143... Bxe7+ {[%clk 0:00:04.7]} 144. Nxd6 {[%clk 0:00:04.4]}
144... Bxd6 {[%clk 0:00:06.6]} 145. Kf6 {[%clk 0:00:06.1]} 145... Kc7 {[%clk
0:00:07.8]} 146. Ke6 {[%clk 0:00:08]} 146... Kb6 {[%clk 0:00:09.6]} 147. Kxd6
{[%clk 0:00:09]} 147... Kxb5 {[%clk 0:00:11.5]} 1/2-1/2

[Event "*** Titled Tuesday Blitz"]
[Site "Chess.com"]
[Date "2019.12.03"]
[Round "6"]
[White "Tiqr777"]
[Black "1977Ivan"]
[Result "0-1"]
[WhiteElo "2627"]
[BlackElo "2790"]
[TimeControl "180+2"]
[EndTime "14:18:17 PST"]
[Termination "1977Ivan won by resignation"]

1. c4 {[%clk 0:03:01.9]} 1... Nf6 {[%clk 0:02:59.1]} 2. Nc3 {[%clk 0:03:01.7]}
2... e5 {[%clk 0:02:59.1]} 3. g3 {[%clk 0:03:01.5]} 3... c6 {[%clk 0:02:59.7]}
4. Bg2 {[%clk 0:03:01.8]} 4... d5 {[%clk 0:02:59.6]} 5. cxd5 {[%clk 0:03:03.4]}
5... cxd5 {[%clk 0:03:01.2]} 6. d3 {[%clk 0:03:04.9]} 6... Nc6 {[%clk 0:03:01]}
7. Nf3 {[%clk 0:03:06.1]} 7... d4 {[%clk 0:03:01.1]} 8. Nb1 {[%clk 0:03:05.7]}
8... h6 {[%clk 0:02:57.6]} 9. O-O {[%clk 0:03:07]} 9... Bd6 {[%clk 0:02:55.7]}
10. a3 {[%clk 0:03:08.1]} 10... O-O {[%clk 0:02:55.7]} 11. b4 {[%clk 0:03:09.1]}
11... Be6 {[%clk 0:02:52.6]} 12. Bb2 {[%clk 0:03:10]} 12... Rc8 {[%clk
0:02:52.7]} 13. Nbd2 {[%clk 0:03:10.9]} 13... b5 {[%clk 0:02:43.5]} 14. Rc1
{[%clk 0:03:01]} 14... a5 {[%clk 0:02:40.2]} 15. Ng5 {[%clk 0:02:48.3]} 15...
hxg5 {[%clk 0:02:29.3]} 16. Bxc6 {[%clk 0:02:46.2]} 16... axb4 {[%clk 0:02:29]}
17. axb4 {[%clk 0:02:45.8]} 17... Qb6 {[%clk 0:02:25]} 18. Bg2 {[%clk
0:02:45.6]} 18... g4 {[%clk 0:02:22.7]} 19. Ne4 {[%clk 0:02:36.5]} 19... Nxe4
{[%clk 0:02:23.3]} 20. Bxe4 {[%clk 0:02:37.8]} 20... Bxb4 {[%clk 0:02:23.2]} 21.
Rxc8 {[%clk 0:02:33.3]} 21... Rxc8 {[%clk 0:02:23.2]} 22. Qb1 {[%clk 0:02:35]}
22... Bc3 {[%clk 0:02:18.9]} 23. Bc1 {[%clk 0:02:27.4]} 23... b4 {[%clk
0:02:17.3]} 24. f4 {[%clk 0:02:17.4]} 24... gxf3 {[%clk 0:02:17.2]} 25. Bxf3
{[%clk 0:02:18.1]} 25... b3 {[%clk 0:02:17.4]} 26. Bg2 {[%clk 0:02:02.9]} 26...
b2 {[%clk 0:02:17.2]} 27. Bg5 {[%clk 0:02:04.2]} 27... Qa5 {[%clk 0:02:15.9]}
0-1

[Event "*** Titled Tuesday Blitz"]
[Site "Chess.com"]
[Date "2019.12.03"]
[Round "6"]
[White "PNEPaul"]
[Black "goldenspine"]
[Result "0-1"]
[WhiteElo "1715"]
[BlackElo "2324"]
[TimeControl "180+2"]
[EndTime "14:18:30 PST"]
[Termination "goldenspine won by resignation"]

1. e4 {[%clk 0:03:01.9]} 1... c6 {[%clk 0:03:01.1]} 2. d4 {[%clk 0:03:02.2]}
2... d5 {[%clk 0:03:02.2]} 3. exd5 {[%clk 0:03:03]} 3... cxd5 {[%clk 0:03:03.1]}
4. c4 {[%clk 0:03:04]} 4... Nf6 {[%clk 0:03:04.3]} 5. Nc3 {[%clk 0:03:05]} 5...
Nc6 {[%clk 0:03:05]} 6. Nf3 {[%clk 0:03:06.2]} 6... e6 {[%clk 0:03:03.4]} 7. Be2
{[%clk 0:03:07.3]} 7... dxc4 {[%clk 0:03:03.9]} 8. Bxc4 {[%clk 0:03:07.8]} 8...
Bb4 {[%clk 0:03:03.5]} 9. O-O {[%clk 0:03:05.5]} 9... O-O {[%clk 0:03:04.2]} 10.
a3 {[%clk 0:03:04.9]} 10... Be7 {[%clk 0:03:00.6]} 11. d5 {[%clk 0:03:02.7]}
11... exd5 {[%clk 0:02:59.9]} 12. Nxd5 {[%clk 0:03:03]} 12... Nxd5 {[%clk
0:03:00.4]} 13. Qxd5 {[%clk 0:03:03.8]} 13... Qc7 {[%clk 0:02:45.6]} 14. Be3
{[%clk 0:02:46.6]} 14... Be6 {[%clk 0:02:40.1]} 15. Qe4 {[%clk 0:02:17.6]} 15...
Bxc4 {[%clk 0:02:35.9]} 16. Qxc4 {[%clk 0:02:18.2]} 16... Bf6 {[%clk 0:02:36.5]}
17. Bd4 {[%clk 0:02:10.3]} 17... Qf4 {[%clk 0:02:29.6]} 18. Rfd1 {[%clk
0:01:52.6]} 18... Rad8 {[%clk 0:02:12.1]} 19. Rac1 {[%clk 0:01:30.8]} 19... Nxd4
{[%clk 0:02:09.2]} 20. Nxd4 {[%clk 0:01:31.3]} 20... Rxd4 {[%clk 0:02:08.6]} 21.
Rxd4 {[%clk 0:01:32.1]} 21... Bxd4 {[%clk 0:02:02.5]} 0-1

[Event "*** Titled Tuesday Blitz"]
[Site "Chess.com"]
[Date "2019.12.03"]
[Round "6"]
[White "matiss90"]
[Black "Marcin"]
[Result "1-0"]
[WhiteElo "2569"]
[BlackElo "2365"]
[TimeControl "180+2"]
[EndTime "14:19:05 PST"]
[Termination "matiss90 won by resignation"]

1. e4 {[%clk 0:03:01.9]} 1... c5 {[%clk 0:03:00.7]} 2. Nf3 {[%clk 0:03:02.6]}
2... e6 {[%clk 0:03:01.9]} 3. d4 {[%clk 0:03:03.8]} 3... cxd4 {[%clk 0:03:03.8]}
4. Nxd4 {[%clk 0:03:05.7]} 4... Nc6 {[%clk 0:03:05.4]} 5. Nc3 {[%clk 0:03:07]}
5... Qc7 {[%clk 0:03:06.4]} 6. Be2 {[%clk 0:03:07.4]} 6... a6 {[%clk 0:03:06.9]}
7. O-O {[%clk 0:03:08.5]} 7... Nf6 {[%clk 0:03:08.5]} 8. Re1 {[%clk 0:02:52.9]}
8... b5 {[%clk 0:02:56.7]} 9. Bf3 {[%clk 0:02:50.9]} 9... Ne5 {[%clk 0:02:54.1]}
10. Bf4 {[%clk 0:02:40.4]} 10... Bb7 {[%clk 0:02:52.9]} 11. Nd5 {[%clk
0:02:38.2]} 11... exd5 {[%clk 0:02:32.1]} 12. Bxe5 {[%clk 0:02:38.3]} 12... Qb6
{[%clk 0:01:55.2]} 13. exd5 {[%clk 0:02:20.2]} 13... O-O-O {[%clk 0:01:55.7]}
14. a4 {[%clk 0:02:19.3]} 14... Bd6 {[%clk 0:01:50.3]} 15. Bxd6 {[%clk
0:02:16.7]} 15... Qxd6 {[%clk 0:01:51]} 16. axb5 {[%clk 0:02:18]} 16... axb5
{[%clk 0:01:48.2]} 17. Nxb5 {[%clk 0:02:17.1]} 17... Qc5 {[%clk 0:01:48.7]} 18.
c4 {[%clk 0:02:12.4]} 18... Rhe8 {[%clk 0:01:48.3]} 19. Rf1 {[%clk 0:02:05.9]}
19... d6 {[%clk 0:01:48.7]} 20. b4 {[%clk 0:01:54.7]} 20... Qxb4 {[%clk
0:01:49]} 21. Na7+ {[%clk 0:01:49.7]} 21... Kb8 {[%clk 0:01:48]} 22. Rb1 {[%clk
0:01:49.3]} 22... Qxc4 {[%clk 0:01:41.8]} 23. Nc6+ {[%clk 0:01:45.8]} 23... Kc7
{[%clk 0:01:42.9]} 24. Rc1 {[%clk 0:01:44.8]} 24... Qb5 {[%clk 0:01:34.5]} 25.
Nd4+ {[%clk 0:01:40]} 1-0